[Event "2026 Biel Blitz Open"]
[Site "Biel, CH"]
[Date "2026.07.19"]
[Round "2"]
[White "Ashwath Kaushik"]
[Black "Huang,Hsuan-Chen"]
[Result "1-0"]
[Board "33"]
[TimeControl "180+2"]
[WhiteFideId "33387230"]
[BlackFideId "16303121"]
[WhiteElo "2122"]
[BlackElo "1833"]
[WhiteTitle "FM"]
[WhiteClock "0:02:10"]
[BlackClock "0:01:35"]
[Variant "Standard"]
[EndDate "2026.07.19"]
[EndTime "12:04:25"]

1. d4 {[%clk 0:03:02]}  d5 {[%clk 0:03:04]} 2. Nf3 {[%clk 0:03:03]}  Nf6 {[%clk 0:03:05]} 3. c4 {[%clk 0:03:04]}  e6 {[%clk 0:03:06]}
4. e3 {[%clk 0:03:06]}  c6 {[%clk 0:03:07]} 5. b3 {[%clk 0:03:06]}  Bd6 {[%clk 0:03:08]} 6. Bd3 {[%clk 0:03:07]}  Nbd7 {[%clk 0:03:09]}
7. Bb2 {[%clk 0:03:08]}  Qe7 {[%clk 0:03:10]} 8. Ne5 {[%clk 0:03:06]}  O-O {[%clk 0:03:10]} 9. O-O {[%clk 0:03:06]}  Ne4 {[%clk 0:03:11]}
10. f3 {[%clk 0:03:02]}  Nef6 {[%clk 0:03:12]} 11. f4 {[%clk 0:03:03]}  Ne4 {[%clk 0:03:13]} 12. Qf3 {[%clk 0:02:56]}  f5 {[%clk 0:03:13]}
13. Qh3 {[%clk 0:02:50]}  Ndf6 {[%clk 0:03:08]} 14. Nc3 {[%clk 0:02:44]}  Bd7 {[%clk 0:02:56]} 15. Nxe4 {[%clk 0:02:44]}  fxe4 {[%clk 0:02:51]}
16. Be2 {[%clk 0:02:45]}  c5 {[%clk 0:02:39]} 17. g4 {[%clk 0:02:44]}  cxd4 {[%clk 0:02:40]} 18. Bxd4 {[%clk 0:02:43]}  Be8 {[%clk 0:02:25]}
19. g5 {[%clk 0:02:44]}  Nd7 {[%clk 0:02:26]} 20. Bg4 {[%clk 0:02:43]}  Bxe5 {[%clk 0:02:07]} 21. fxe5 {[%clk 0:02:38]}  Bf7 {[%clk 0:02:05]}
22. cxd5 {[%clk 0:02:36]}  Nb6 {[%clk 0:01:58]} 23. dxe6 {[%clk 0:02:33]}  Bg6 {[%clk 0:01:59]} 24. Kh1 {[%clk 0:02:26]}  Qxg5 {[%clk 0:01:55]}
25. Rg1 {[%clk 0:02:13]}  Qe7 {[%clk 0:01:52]} 26. Rac1 {[%clk 0:02:06]}  Nd5 {[%clk 0:01:40]} 27. Bc5 {[%clk 0:02:12]}  Qg5 {[%clk 0:01:39]}
28. e7 {[%clk 0:02:10]}  Nxe7 {[%clk 0:01:35]} 29. Be6+ {[%clk 0:02:10]} 1-0

[Event "2026 Biel Blitz Open"]
[Site "Biel, CH"]
[Date "2026.07.19"]
[Round "2"]
[White "Tcheau, Alain"]
[Black "Habibi, Ali"]
[Result "0-1"]
[Board "34"]
[TimeControl "180+2"]
[WhiteFideId "1306014"]
[BlackFideId "4604393"]
[WhiteElo "1777"]
[BlackElo "2116"]
[BlackTitle "IM"]
[WhiteClock "0:00:18"]
[BlackClock "0:01:16"]
[Variant "Standard"]
[EndDate "2026.07.19"]
[EndTime "12:14:02"]

1. h3 {[%clk 0:03:02]}  c5 {[%clk 0:03:01]} 2. c3 {[%clk 0:03:03]}  b6 {[%clk 0:03:02]} 3. d4 {[%clk 0:03:03]}  Bb7 {[%clk 0:03:03]}
4. Nf3 {[%clk 0:03:03]}  e6 {[%clk 0:03:00]} 5. Bf4 {[%clk 0:03:04]}  Nf6 {[%clk 0:03:00]} 6. e3 {[%clk 0:03:04]}  d6 {[%clk 0:02:58]}
7. Bg3 {[%clk 0:03:03]}  Nbd7 {[%clk 0:02:58]} 8. Be2 {[%clk 0:03:04]}  a6 {[%clk 0:02:58]} 9. O-O {[%clk 0:03:04]}  Qc7 {[%clk 0:02:59]}
10. a4 {[%clk 0:03:04]}  Be7 {[%clk 0:02:58]} 11. Nbd2 {[%clk 0:03:05]}  O-O {[%clk 0:02:54]} 12. Re1 {[%clk 0:03:06]}  Rad8 {[%clk 0:02:52]}
13. Qc2 {[%clk 0:03:08]}  Rc8 {[%clk 0:02:49]} 14. Rac1 {[%clk 0:03:08]}  Rfd8 {[%clk 0:02:49]} 15. b3 {[%clk 0:03:06]}  Qb8 {[%clk 0:02:47]}
16. Qb1 {[%clk 0:03:01]}  Qa8 {[%clk 0:02:43]} 17. Bf1 {[%clk 0:03:00]}  Ne4 {[%clk 0:02:39]} 18. Nxe4 {[%clk 0:02:58]}  Bxe4 {[%clk 0:02:39]}
19. Qb2 {[%clk 0:02:48]}  h6 {[%clk 0:02:17]} 20. Nd2 {[%clk 0:02:45]}  Bb7 {[%clk 0:02:16]} 21. f3 {[%clk 0:02:36]}  Qb8 {[%clk 0:02:16]}
22. e4 {[%clk 0:02:34]}  Qc7 {[%clk 0:02:16]} 23. Kh1 {[%clk 0:02:27]}  Bg5 {[%clk 0:02:07]} 24. f4 {[%clk 0:02:24]}  Be7 {[%clk 0:02:08]}
25. e5 {[%clk 0:02:19]}  d5 {[%clk 0:01:55]} 26. Nf3 {[%clk 0:02:14]}  Nf8 {[%clk 0:01:43]} 27. Bd3 {[%clk 0:02:14]}  g6 {[%clk 0:01:39]}
28. Qb1 {[%clk 0:02:11]}  Qd7 {[%clk 0:01:37]} 29. Nh4 {[%clk 0:02:08]}  Qe8 {[%clk 0:01:37]} 30. Nf3 {[%clk 0:02:05]}  b5 {[%clk 0:01:32]}
31. axb5 {[%clk 0:02:05]}  axb5 {[%clk 0:01:33]} 32. Qb2 {[%clk 0:02:01]}  Rb8 {[%clk 0:01:32]} 33. Qe2 {[%clk 0:01:59]}  c4 {[%clk 0:01:32]}
34. bxc4 {[%clk 0:02:00]}  bxc4 {[%clk 0:01:33]} 35. Bc2 {[%clk 0:02:01]}  Bc6 {[%clk 0:01:35]} 36. Rf1 {[%clk 0:01:56]}  Ba4 {[%clk 0:01:35]}
37. Bxa4 {[%clk 0:01:54]}  Qxa4 {[%clk 0:01:36]} 38. Ra1 {[%clk 0:01:42]}  Qb3 {[%clk 0:01:25]} 39. Rfc1 {[%clk 0:01:34]}  Qb2 {[%clk 0:01:37]}
40. Nd2 {[%clk 0:01:21]}  Ra8 {[%clk 0:01:32]} 41. Rxa8 {[%clk 0:01:12]}  Rxa8 {[%clk 0:01:33]} 42. Qd1 {[%clk 0:01:01]}  Ra2 {[%clk 0:01:34]}
43. Be1 {[%clk 0:01:02]}  Ba3 {[%clk 0:01:28]} 44. Rb1 {[%clk 0:00:40]}  Qc2 {[%clk 0:01:27]} 45. Qxc2 {[%clk 0:00:33]}  Rxc2 {[%clk 0:01:28]}
46. Nf3 {[%clk 0:00:27]}  Bb2 {[%clk 0:01:25]} 47. Kg1 {[%clk 0:00:25]}  Bxc3 {[%clk 0:01:26]} 48. Bf2 {[%clk 0:00:18]}  Rb2 {[%clk 0:01:17]}
49. Ra1 {[%clk 0:00:18]}  Rxf2 {[%clk 0:01:16]} 0-1

[Event "2026 Biel Blitz Open"]
[Site "Biel, CH"]
[Date "2026.07.19"]
[Round "2"]
[White "Aryan Goyal"]
[Black "Ragavan, Samarth Rajesh"]
[Result "1-0"]
[Board "35"]
[TimeControl "180+2"]
[WhiteFideId "366108825"]
[BlackFideId "39918106"]
[WhiteElo "1748"]
[BlackElo "2101"]
[WhiteClock "0:00:07"]
[BlackClock "0:01:08"]
[Variant "Standard"]
[EndDate "2026.07.19"]
[EndTime "12:08:59"]

1. e4 {[%clk 0:03:03]}  d5 {[%clk 0:03:04]} 2. exd5 {[%clk 0:03:02]}  Qxd5 {[%clk 0:03:05]} 3. Nc3 {[%clk 0:03:03]}  Qa5 {[%clk 0:03:06]}
4. d4 {[%clk 0:03:01]}  Nf6 {[%clk 0:03:07]} 5. Nf3 {[%clk 0:03:00]}  Bf5 {[%clk 0:03:09]} 6. Bc4 {[%clk 0:02:57]}  e6 {[%clk 0:03:10]}
7. O-O {[%clk 0:02:58]}  Nbd7 {[%clk 0:03:10]} 8. Re1 {[%clk 0:02:56]}  O-O-O {[%clk 0:02:59]} 9. Ne2 {[%clk 0:02:42]}  c6 {[%clk 0:02:56]}
10. c3 {[%clk 0:02:42]}  Bd6 {[%clk 0:02:57]} 11. Bf4 {[%clk 0:02:41]}  Qc7 {[%clk 0:02:55]} 12. Bxd6 {[%clk 0:02:40]}  Qxd6 {[%clk 0:02:57]}
13. Ng3 {[%clk 0:02:40]}  Bg6 {[%clk 0:02:55]} 14. Qe2 {[%clk 0:02:37]}  Rhe8 {[%clk 0:02:52]} 15. Ne5 {[%clk 0:02:35]}  Qc7 {[%clk 0:02:47]}
16. Nxg6 {[%clk 0:02:32]}  hxg6 {[%clk 0:02:48]} 17. Ne4 {[%clk 0:02:32]}  Nd5 {[%clk 0:02:47]} 18. Qf3 {[%clk 0:02:25]}  N7f6 {[%clk 0:02:43]}
19. Qg3 {[%clk 0:02:11]}  Nxe4 {[%clk 0:02:42]} 20. Qxc7+ {[%clk 0:02:09]}  Kxc7 {[%clk 0:02:42]} 21. Rxe4 {[%clk 0:02:10]}  Nb6 {[%clk 0:02:41]}
22. Bb3 {[%clk 0:02:08]}  Nd7 {[%clk 0:02:37]} 23. Rd1 {[%clk 0:02:06]}  c5 {[%clk 0:02:38]} 24. Ba4 {[%clk 0:02:02]}  a6 {[%clk 0:02:18]}
25. Kf1 {[%clk 0:01:31]}  b5 {[%clk 0:02:19]} 26. Bc2 {[%clk 0:01:31]}  Nf6 {[%clk 0:02:18]} 27. Rh4 {[%clk 0:01:19]}  g5 {[%clk 0:02:10]}
28. Rh3 {[%clk 0:01:20]}  cxd4 {[%clk 0:02:11]} 29. cxd4 {[%clk 0:01:18]}  Rd6 {[%clk 0:02:09]} 30. Rc3+ {[%clk 0:01:18]}  Kb6 {[%clk 0:02:09]}
31. Bb1 {[%clk 0:01:04]}  Red8 {[%clk 0:01:52]} 32. Rcd3 {[%clk 0:01:04]}  Nd5 {[%clk 0:01:46]} 33. a3 {[%clk 0:01:04]}  Nf4 {[%clk 0:01:45]}
34. R3d2 {[%clk 0:01:05]}  e5 {[%clk 0:01:44]} 35. g3 {[%clk 0:01:03]}  Ne6 {[%clk 0:01:45]} 36. d5 {[%clk 0:00:58]}  Nc7 {[%clk 0:01:46]}
37. Be4 {[%clk 0:00:58]}  g6 {[%clk 0:01:44]} 38. g4 {[%clk 0:00:55]}  f5 {[%clk 0:01:35]} 39. gxf5 {[%clk 0:00:55]}  gxf5 {[%clk 0:01:36]}
40. Bxf5 {[%clk 0:00:56]}  Nxd5 {[%clk 0:01:38]} 41. Ke1 {[%clk 0:00:50]}  Kc7 {[%clk 0:01:24]} 42. Be4 {[%clk 0:00:47]}  Nf4 {[%clk 0:01:24]}
43. Rxd6 {[%clk 0:00:38]}  Rxd6 {[%clk 0:01:25]} 44. Rxd6 {[%clk 0:00:39]}  Kxd6 {[%clk 0:01:27]} 45. b4 {[%clk 0:00:36]}  Kc7 {[%clk 0:01:25]}
46. Kd2 {[%clk 0:00:36]}  Kb6 {[%clk 0:01:23]} 47. Ke3 {[%clk 0:00:36]}  a5 {[%clk 0:01:26]} 48. Kf3 {[%clk 0:00:35]}  axb4 {[%clk 0:01:19]}
49. axb4 {[%clk 0:00:36]}  Ne6 {[%clk 0:01:20]} 50. Kg4 {[%clk 0:00:36]}  Kc7 {[%clk 0:01:19]} 51. Kf5 {[%clk 0:00:30]}  Kd6 {[%clk 0:01:21]}
52. Kg4 {[%clk 0:00:21]}  Ke7 {[%clk 0:01:15]} 53. Bd3 {[%clk 0:00:14]}  Nd4 {[%clk 0:01:13]} 54. Kxg5 {[%clk 0:00:12]}  Nf3+ {[%clk 0:01:14]}
55. Kf5 {[%clk 0:00:11]}  Nxh2 {[%clk 0:01:14]} 56. Bxb5 {[%clk 0:00:07]}  Kd6 {[%clk 0:01:15]} 57. Be2 {[%clk 0:00:07]}  Kd5 {[%clk 0:01:13]}
58. b5 {[%clk 0:00:07]}  e4 {[%clk 0:01:12]} 59. Kf4 {[%clk 0:00:08]}  e3 {[%clk 0:01:08]} 60. fxe3 {[%clk 0:00:07]} 1-0

[Event "2026 Biel Blitz Open"]
[Site "Biel, CH"]
[Date "2026.07.19"]
[Round "2"]
[White "Kamildjanov, Saidbek"]
[Black "Aryan Mehta"]
[Result "0-1"]
[Board "36"]
[TimeControl "180+2"]
[WhiteFideId "151105026"]
[BlackFideId "33329664"]
[WhiteElo "1659"]
[BlackElo "2061"]
[WhiteClock "0:00:09"]
[BlackClock "0:00:44"]
[Variant "Standard"]
[EndDate "2026.07.19"]
[EndTime "12:09:30"]

1. b3 {[%clk 0:03:03]}  Nf6 {[%clk 0:03:02]} 2. Bb2 {[%clk 0:03:04]}  b6 {[%clk 0:03:04]} 3. Nf3 {[%clk 0:03:03]}  e6 {[%clk 0:03:05]}
4. e3 {[%clk 0:03:04]}  Bb7 {[%clk 0:03:06]} 5. Be2 {[%clk 0:03:04]}  Be7 {[%clk 0:03:07]} 6. O-O {[%clk 0:03:05]}  O-O {[%clk 0:03:06]}
7. Nc3 {[%clk 0:03:01]}  d6 {[%clk 0:03:07]} 8. h3 {[%clk 0:02:53]}  Nbd7 {[%clk 0:03:06]} 9. Re1 {[%clk 0:02:46]}  c5 {[%clk 0:03:06]}
10. Bb5 {[%clk 0:02:31]}  a6 {[%clk 0:03:07]} 11. Bxd7 {[%clk 0:02:31]}  Qxd7 {[%clk 0:03:07]} 12. d3 {[%clk 0:02:32]}  d5 {[%clk 0:03:07]}
13. Ne5 {[%clk 0:02:27]}  Qc7 {[%clk 0:03:08]} 14. d4 {[%clk 0:02:27]}  Rac8 {[%clk 0:03:06]} 15. Rc1 {[%clk 0:02:24]}  h6 {[%clk 0:03:05]}
16. f3 {[%clk 0:02:22]}  Rfd8 {[%clk 0:03:04]} 17. Ne2 {[%clk 0:02:16]}  Nd7 {[%clk 0:02:45]} 18. f4 {[%clk 0:02:09]}  Nxe5 {[%clk 0:02:37]}
19. fxe5 {[%clk 0:02:09]}  Bg5 {[%clk 0:02:32]} 20. Ng3 {[%clk 0:02:07]}  cxd4 {[%clk 0:02:18]} 21. Qxd4 {[%clk 0:02:06]}  Qc5 {[%clk 0:02:07]}
22. b4 {[%clk 0:01:34]}  Qxd4 {[%clk 0:02:06]} 23. Bxd4 {[%clk 0:01:35]}  Rc6 {[%clk 0:01:48]} 24. Ne2 {[%clk 0:01:22]}  Be7 {[%clk 0:01:41]}
25. a3 {[%clk 0:01:20]}  b5 {[%clk 0:01:34]} 26. g3 {[%clk 0:01:13]}  Rdc8 {[%clk 0:01:34]} 27. c3 {[%clk 0:01:12]}  Ra8 {[%clk 0:01:33]}
28. Ra1 {[%clk 0:01:12]}  a5 {[%clk 0:01:29]} 29. Nf4 {[%clk 0:01:03]}  Rca6 {[%clk 0:01:27]} 30. bxa5 {[%clk 0:00:31]}  Rxa5 {[%clk 0:01:27]}
31. Reb1 {[%clk 0:00:32]}  Bc6 {[%clk 0:01:26]} 32. Nd3 {[%clk 0:00:30]}  Rxa3 {[%clk 0:01:22]} 33. Rxa3 {[%clk 0:00:30]}  Rxa3 {[%clk 0:01:24]}
34. Bc5 {[%clk 0:00:19]}  Bxc5 {[%clk 0:01:23]} 35. Nxc5 {[%clk 0:00:17]}  Rxc3 {[%clk 0:01:22]} 36. Na6 {[%clk 0:00:19]}  Rxe3 {[%clk 0:01:18]}
37. Kf2 {[%clk 0:00:19]}  Rxe5 {[%clk 0:01:18]} 38. Nb4 {[%clk 0:00:19]}  Bd7 {[%clk 0:01:15]} 39. Rc1 {[%clk 0:00:21]}  Re4 {[%clk 0:01:14]}
40. Nd3 {[%clk 0:00:20]}  Rc4 {[%clk 0:01:14]} 41. Ra1 {[%clk 0:00:19]}  f6 {[%clk 0:01:07]} 42. g4 {[%clk 0:00:16]}  Kf7 {[%clk 0:01:06]}
43. Ra7 {[%clk 0:00:16]}  Ke7 {[%clk 0:01:08]} 44. Ke3 {[%clk 0:00:16]}  Kd6 {[%clk 0:01:08]} 45. Nf4 {[%clk 0:00:11]}  b4 {[%clk 0:00:59]}
46. Ne2 {[%clk 0:00:08]}  e5 {[%clk 0:00:57]} 47. Kd3 {[%clk 0:00:05]}  Kc6 {[%clk 0:00:48]} 48. Ra6+ {[%clk 0:00:04]}  Kc7 {[%clk 0:00:47]}
49. Ra7+ {[%clk 0:00:06]}  Kd6 {[%clk 0:00:48]} 50. Ra6+ {[%clk 0:00:07]}  Bc6 {[%clk 0:00:45]} 51. Rb6 {[%clk 0:00:06]}  Kc7 {[%clk 0:00:43]}
52. Ra6 {[%clk 0:00:06]}  b3 {[%clk 0:00:43]} 53. Ra7+ {[%clk 0:00:07]}  Kb6 {[%clk 0:00:43]} 54. Rxg7 {[%clk 0:00:06]}  b2 {[%clk 0:00:44]}
55. Nc3 {[%clk 0:00:05]}  Rxc3+ {[%clk 0:00:44]} 56. Kxc3 {[%clk 0:00:05]}  b1=Q {[%clk 0:00:40]} 57. Kd2 {[%clk 0:00:06]}  d4 {[%clk 0:00:34]}
58. Re7 {[%clk 0:00:05]}  e4 {[%clk 0:00:42]} 59. Re6 {[%clk 0:00:06]}  e3+ {[%clk 0:00:42]} 60. Ke2 {[%clk 0:00:07]}  Qc2+ {[%clk 0:00:42]}
61. Ke1 {[%clk 0:00:08]}  Qd2+ {[%clk 0:00:43]} 62. Kf1 {[%clk 0:00:09]}  Qf2# {[%clk 0:00:44]} 0-1

[Event "2026 Biel Blitz Open"]
[Site "Biel, CH"]
[Date "2026.07.19"]
[Round "2"]
[White "Langner, Robin"]
[Black "Mousseau, Leo"]
[Result "1-0"]
[Board "37"]
[TimeControl "180+2"]
[WhiteFideId "34606190"]
[BlackFideId "34666931"]
[WhiteElo "2059"]
[BlackElo "1714"]
[WhiteClock "0:01:26"]
[BlackClock "0:00:21"]
[Variant "Standard"]
[EndDate "2026.07.19"]
[EndTime "12:06:44"]

1. d4 {[%clk 0:03:03]}  Nf6 {[%clk 0:03:03]} 2. c4 {[%clk 0:03:05]}  g6 {[%clk 0:03:04]} 3. Nc3 {[%clk 0:03:06]}  Bg7 {[%clk 0:03:05]}
4. e4 {[%clk 0:03:07]}  d6 {[%clk 0:03:06]} 5. Be2 {[%clk 0:03:08]}  O-O {[%clk 0:03:07]} 6. Nf3 {[%clk 0:03:08]}  e5 {[%clk 0:03:07]}
7. Be3 {[%clk 0:03:10]}  Nc6 {[%clk 0:03:07]} 8. d5 {[%clk 0:03:11]}  Ne7 {[%clk 0:03:08]} 9. Nd2 {[%clk 0:03:12]}  Nd7 {[%clk 0:03:01]}
10. Rc1 {[%clk 0:02:49]}  f5 {[%clk 0:02:59]} 11. f3 {[%clk 0:02:49]}  f4 {[%clk 0:02:56]} 12. Bf2 {[%clk 0:02:43]}  a5 {[%clk 0:02:52]}
13. a3 {[%clk 0:02:27]}  g5 {[%clk 0:02:45]} 14. h3 {[%clk 0:02:27]}  Ng6 {[%clk 0:02:38]} 15. b4 {[%clk 0:02:23]}  Nf6 {[%clk 0:02:26]}
16. c5 {[%clk 0:02:22]}  axb4 {[%clk 0:02:10]} 17. axb4 {[%clk 0:02:23]}  h5 {[%clk 0:02:03]} 18. Nc4 {[%clk 0:02:17]}  Bd7 {[%clk 0:01:55]}
19. cxd6 {[%clk 0:02:16]}  cxd6 {[%clk 0:01:50]} 20. Nxd6 {[%clk 0:02:09]}  Qb8 {[%clk 0:01:19]} 21. Nc4 {[%clk 0:02:00]}  g4 {[%clk 0:01:15]}
22. hxg4 {[%clk 0:01:50]}  hxg4 {[%clk 0:01:15]} 23. Nb6 {[%clk 0:01:51]}  Ra3 {[%clk 0:00:50]} 24. Nxd7 {[%clk 0:01:51]}  Nxd7 {[%clk 0:00:51]}
25. fxg4 {[%clk 0:01:50]}  Rc8 {[%clk 0:00:35]} 26. Nb5 {[%clk 0:01:33]}  Rxc1 {[%clk 0:00:32]} 27. Qxc1 {[%clk 0:01:34]}  Ra2 {[%clk 0:00:23]}
28. Bc4 {[%clk 0:01:27]}  Nb6 {[%clk 0:00:21]} 29. Bxa2 {[%clk 0:01:26]} 1-0

[Event "2026 Biel Blitz Open"]
[Site "Biel, CH"]
[Date "2026.07.19"]
[Round "2"]
[White "Gireada, Lucas"]
[Black "Tkhoruk, Roman"]
[Result "0-1"]
[Board "38"]
[TimeControl "180+2"]
[WhiteFideId "1373544"]
[BlackFideId "34161589"]
[WhiteElo "1651"]
[BlackElo "2055"]
[WhiteClock "0:00:31"]
[BlackClock "0:00:11"]
[Variant "Standard"]
[EndDate "2026.07.19"]
[EndTime "12:08:02"]

1. d4 {[%clk 0:03:03]}  Nf6 {[%clk 0:03:04]} 2. c4 {[%clk 0:03:05]}  e6 {[%clk 0:03:05]} 3. Nf3 {[%clk 0:03:05]}  Bb4+ {[%clk 0:03:06]}
4. Bd2 {[%clk 0:03:06]}  Bxd2+ {[%clk 0:03:07]} 5. Qxd2 {[%clk 0:03:06]}  d5 {[%clk 0:03:08]} 6. Nc3 {[%clk 0:03:07]}  O-O {[%clk 0:03:09]}
7. e3 {[%clk 0:03:08]}  b6 {[%clk 0:03:09]} 8. cxd5 {[%clk 0:03:07]}  exd5 {[%clk 0:03:10]} 9. Bd3 {[%clk 0:03:08]}  Ba6 {[%clk 0:02:57]}
10. O-O {[%clk 0:03:05]}  Bxd3 {[%clk 0:02:57]} 11. Qxd3 {[%clk 0:03:06]}  c6 {[%clk 0:02:50]} 12. Ne5 {[%clk 0:03:05]}  Qd6 {[%clk 0:02:48]}
13. h3 {[%clk 0:03:01]}  Nfd7 {[%clk 0:02:27]} 14. Nxd7 {[%clk 0:02:50]}  Nxd7 {[%clk 0:02:28]} 15. a3 {[%clk 0:02:45]}  f5 {[%clk 0:02:23]}
16. Ne2 {[%clk 0:02:33]}  Nf6 {[%clk 0:01:33]} 17. b4 {[%clk 0:02:31]}  Ne4 {[%clk 0:01:27]} 18. Nc3 {[%clk 0:02:23]}  a5 {[%clk 0:01:13]}
19. Nxe4 {[%clk 0:02:06]}  fxe4 {[%clk 0:01:13]} 20. Qc3 {[%clk 0:02:06]}  Rf6 {[%clk 0:00:53]} 21. Rfb1 {[%clk 0:01:44]}  a4 {[%clk 0:00:27]}
22. b5 {[%clk 0:01:41]}  cxb5 {[%clk 0:00:20]} 23. Rxb5 {[%clk 0:01:42]}  Raf8 {[%clk 0:00:20]} 24. Rb2 {[%clk 0:01:34]}  Qe6 {[%clk 0:00:20]}
25. Qb4 {[%clk 0:01:17]}  Rg6 {[%clk 0:00:17]} 26. Kh1 {[%clk 0:00:58]}  Rf3 {[%clk 0:00:13]} 27. Qxb6 {[%clk 0:00:44]}  Rxh3+ {[%clk 0:00:11]}
28. Kg1 {[%clk 0:00:31]} 0-1

[Event "2026 Biel Blitz Open"]
[Site "Biel, CH"]
[Date "2026.07.19"]
[Round "2"]
[White "Stefan, Iulia-Cristiana"]
[Black "Mauger-Le-Cunff, Noah"]
[Result "1-0"]
[Board "39"]
[TimeControl "180+2"]
[WhiteFideId "1273876"]
[BlackFideId "36079308"]
[WhiteElo "2050"]
[BlackElo "1604"]
[WhiteTitle "WFM"]
[WhiteClock "0:00:15"]
[BlackClock "0:00:06"]
[Variant "Standard"]
[EndDate "2026.07.19"]
[EndTime "12:09:08"]

1. d4 {[%clk 0:03:03]}  c6 {[%clk 0:03:04]} 2. Nf3 {[%clk 0:03:04]}  d5 {[%clk 0:03:05]} 3. c4 {[%clk 0:03:06]}  Nf6 {[%clk 0:03:06]}
4. Qb3 {[%clk 0:03:07]}  Qc7 {[%clk 0:03:05]} 5. Nc3 {[%clk 0:03:04]}  e6 {[%clk 0:03:06]} 6. Bg5 {[%clk 0:03:05]}  Bd6 {[%clk 0:03:06]}
7. e3 {[%clk 0:03:03]}  h6 {[%clk 0:03:02]} 8. Bh4 {[%clk 0:03:03]}  Nbd7 {[%clk 0:02:43]} 9. Rc1 {[%clk 0:03:04]}  Qb6 {[%clk 0:02:35]}
10. Qc2 {[%clk 0:02:45]}  Be7 {[%clk 0:02:31]} 11. Bd3 {[%clk 0:02:35]}  Qc7 {[%clk 0:02:22]} 12. cxd5 {[%clk 0:02:13]}  Nxd5 {[%clk 0:02:11]}
13. Bxe7 {[%clk 0:01:40]}  Nxe7 {[%clk 0:02:10]} 14. O-O {[%clk 0:01:38]}  Nf6 {[%clk 0:02:07]} 15. Nb5 {[%clk 0:01:32]}  Qd7 {[%clk 0:02:05]}
16. Ne5 {[%clk 0:01:32]}  Qd8 {[%clk 0:01:54]} 17. Na3 {[%clk 0:01:18]}  O-O {[%clk 0:01:33]} 18. Rfd1 {[%clk 0:01:17]}  Ned5 {[%clk 0:01:22]}
19. Qd2 {[%clk 0:01:07]}  Nd7 {[%clk 0:01:12]} 20. Nac4 {[%clk 0:00:58]}  f6 {[%clk 0:01:02]} 21. Ng6 {[%clk 0:00:53]}  Rf7 {[%clk 0:01:03]}
22. Nd6 {[%clk 0:00:52]}  N7b6 {[%clk 0:00:45]} 23. Nxf7 {[%clk 0:00:52]}  Kxf7 {[%clk 0:00:46]} 24. e4 {[%clk 0:00:40]}  Ne7 {[%clk 0:00:42]}
25. Nxe7 {[%clk 0:00:41]}  Qxe7 {[%clk 0:00:42]} 26. Qe2 {[%clk 0:00:37]}  e5 {[%clk 0:00:41]} 27. d5 {[%clk 0:00:28]}  cxd5 {[%clk 0:00:38]}
28. exd5 {[%clk 0:00:24]}  Qd6 {[%clk 0:00:32]} 29. Qh5+ {[%clk 0:00:22]}  Kf8 {[%clk 0:00:31]} 30. Be4 {[%clk 0:00:18]}  Bd7 {[%clk 0:00:21]}
31. a3 {[%clk 0:00:18]}  Be8 {[%clk 0:00:22]} 32. Qf5 {[%clk 0:00:17]}  Bf7 {[%clk 0:00:20]} 33. Qh7 {[%clk 0:00:15]}  Rd8 {[%clk 0:00:11]}
34. Qh8+ {[%clk 0:00:14]}  Bg8 {[%clk 0:00:10]} 35. Bh7 {[%clk 0:00:07]}  Kf7 {[%clk 0:00:12]} 36. Bxg8+ {[%clk 0:00:08]}  Rxg8 {[%clk 0:00:13]}
37. Qh7 {[%clk 0:00:09]}  Rd8 {[%clk 0:00:07]} 38. Qe4 {[%clk 0:00:09]}  Nd7 {[%clk 0:00:04]} 39. Qc4 {[%clk 0:00:09]}  Nb6 {[%clk 0:00:05]}
40. Qc7+ {[%clk 0:00:10]}  Qxc7 {[%clk 0:00:05]} 41. Rxc7+ {[%clk 0:00:08]}  Rd7 {[%clk 0:00:06]} 42. Rxd7+ {[%clk 0:00:12]}  Nxd7 {[%clk 0:00:08]}
43. Rc1 {[%clk 0:00:13]}  Nb6 {[%clk 0:00:04]} 44. Rc7+ {[%clk 0:00:14]}  Kg6 {[%clk 0:00:06]} 45. d6 {[%clk 0:00:15]} 1-0

[Event "2026 Biel Blitz Open"]
[Site "Biel, CH"]
[Date "2026.07.19"]
[Round "2"]
[White "Mintz, Nathan"]
[Black "Xu, Chang(CQ)"]
[Result "0-1"]
[Board "40"]
[TimeControl "180+2"]
[WhiteFideId "30995540"]
[BlackFideId "8641757"]
[WhiteElo "1608"]
[BlackElo "2049"]
[WhiteClock "0:00:13"]
[BlackClock "0:00:34"]
[Variant "Standard"]
[EndDate "2026.07.19"]
[EndTime "12:09:17"]

1. e4 {[%clk 0:03:02]}  c5 {[%clk 0:03:03]} 2. c3 {[%clk 0:03:02]}  Nf6 {[%clk 0:03:04]} 3. Bd3 {[%clk 0:02:56]}  Nc6 {[%clk 0:02:56]}
4. Bc2 {[%clk 0:02:56]}  g6 {[%clk 0:02:50]} 5. d4 {[%clk 0:02:50]}  cxd4 {[%clk 0:02:48]} 6. cxd4 {[%clk 0:02:50]}  Bg7 {[%clk 0:02:29]}
7. Nf3 {[%clk 0:02:49]}  O-O {[%clk 0:02:28]} 8. Nc3 {[%clk 0:02:49]}  d6 {[%clk 0:02:23]} 9. O-O {[%clk 0:02:47]}  Bg4 {[%clk 0:02:18]}
10. Be3 {[%clk 0:02:38]}  a6 {[%clk 0:02:16]} 11. h3 {[%clk 0:02:36]}  Bd7 {[%clk 0:02:04]} 12. Qd2 {[%clk 0:02:32]}  Rc8 {[%clk 0:02:01]}
13. Rac1 {[%clk 0:02:28]}  Na5 {[%clk 0:02:00]} 14. Bd3 {[%clk 0:02:18]}  Nc4 {[%clk 0:01:59]} 15. Bxc4 {[%clk 0:02:18]}  Rxc4 {[%clk 0:01:59]}
16. b3 {[%clk 0:02:13]}  Rc8 {[%clk 0:01:59]} 17. Rfd1 {[%clk 0:02:10]}  Bc6 {[%clk 0:01:58]} 18. d5 {[%clk 0:02:06]}  Bd7 {[%clk 0:01:45]}
19. Na4 {[%clk 0:02:02]}  Rxc1 {[%clk 0:01:42]} 20. Rxc1 {[%clk 0:02:01]}  Nxe4 {[%clk 0:01:42]} 21. Qd3 {[%clk 0:01:46]}  Bxa4 {[%clk 0:01:22]}
22. bxa4 {[%clk 0:01:45]}  Nf6 {[%clk 0:01:23]} 23. Qb3 {[%clk 0:01:39]}  Qd7 {[%clk 0:01:17]} 24. a5 {[%clk 0:01:24]}  Ne4 {[%clk 0:00:49]}
25. Nd2 {[%clk 0:01:18]}  Nxd2 {[%clk 0:00:49]} 26. Bxd2 {[%clk 0:01:18]}  Rc8 {[%clk 0:00:48]} 27. Rxc8+ {[%clk 0:01:05]}  Qxc8 {[%clk 0:00:49]}
28. Be3 {[%clk 0:01:00]}  Be5 {[%clk 0:00:50]} 29. g3 {[%clk 0:00:57]}  h5 {[%clk 0:00:49]} 30. Bb6 {[%clk 0:00:56]}  Qc1+ {[%clk 0:00:48]}
31. Kg2 {[%clk 0:00:55]}  Qd2 {[%clk 0:00:45]} 32. a4 {[%clk 0:00:43]}  Kg7 {[%clk 0:00:43]} 33. Bd8 {[%clk 0:00:38]}  Bf6 {[%clk 0:00:40]}
34. Bb6 {[%clk 0:00:38]}  Qe2 {[%clk 0:00:35]} 35. Qe3 {[%clk 0:00:32]}  Qxe3 {[%clk 0:00:35]} 36. Bxe3 {[%clk 0:00:29]}  Bc3 {[%clk 0:00:35]}
37. Bb6 {[%clk 0:00:30]}  Kf6 {[%clk 0:00:36]} 38. f4 {[%clk 0:00:29]}  Kf5 {[%clk 0:00:36]} 39. Kf3 {[%clk 0:00:30]}  e6 {[%clk 0:00:27]}
40. dxe6 {[%clk 0:00:30]}  fxe6 {[%clk 0:00:26]} 41. g4+ {[%clk 0:00:30]}  hxg4+ {[%clk 0:00:26]} 42. hxg4+ {[%clk 0:00:30]}  Kf6 {[%clk 0:00:23]}
43. Ke4 {[%clk 0:00:22]}  d5+ {[%clk 0:00:27]} 44. Kd3 {[%clk 0:00:21]}  Be1 {[%clk 0:00:26]} 45. Bd4+ {[%clk 0:00:19]}  Ke7 {[%clk 0:00:27]}
46. Bc5+ {[%clk 0:00:18]}  Kd7 {[%clk 0:00:28]} 47. Bb6 {[%clk 0:00:17]}  Kd6 {[%clk 0:00:30]} 48. Kd4 {[%clk 0:00:13]}  Bf2+ {[%clk 0:00:30]}
49. Kd3 {[%clk 0:00:14]}  Bxb6 {[%clk 0:00:30]} 50. axb6 {[%clk 0:00:14]}  e5 {[%clk 0:00:31]} 51. f5 {[%clk 0:00:13]}  gxf5 {[%clk 0:00:31]}
52. gxf5 {[%clk 0:00:14]}  e4+ {[%clk 0:00:32]} 53. Kd4 {[%clk 0:00:14]}  Ke7 {[%clk 0:00:33]} 54. a5 {[%clk 0:00:13]}  Kf6 {[%clk 0:00:34]} 0-1